Workbook

Sheet Data
A1: National Housing Bank
A2: Subsidy Calculator for Pradhan Mantri Awas Yojana – Credit Linked Subsidy Scheme
A3: First Disbursement Date | B3: 2015-07-01 | C3: Date should be on or after 17-Jun-2015
A4: Current Disbursement Date (for which subsidy claimed) | B4: 2015-07-01 | C4: Date should be on or after first disbursement date
A5: Loan Tenure (in months) | B5: 180 | C5: Numeric Integer only
A6: Amount Disbursed before this installment (in Rs.) | B6: 0 | C6: Numeric Integer only
A7: Current Disbursement Installment (in Rs.) | B7: 600000 | C7: Numeric Integer only
A8: Applied Interest Rate for subsidy calculation (in % p.a) | B8: 6.5 | C8: NO input data
A9: Subsidy Amount | B9: 220187.0641
A11: Assumptions:
A12: 1. Monthly Interest for calculation of subsidy is arrived at by applying @ 6.5% p.a. on the disbursed amount, for a maximum tenure of 15 years.
A13: 2. NPV is discounted @9% and calculated on monthly rest basis.
A14: 3. Paise in Total is rounded off to the nearest rupee
A15: 4. For calculation purpose month is treated as 30 days.

Sheet Computation (hidden)
A1: Parameters | C1: Loan Amount | D1: =IF((Data!B6+Data!B7)>600000,600000-Data!B6,Data!B7) -> 600000 | E1: Loan Tenure | F1: =IF(Data!B5>180,180,Data!B5) -> 180 | G1: Cur Inst Tenure | H1: =IF(Data!B4="",0, F1-((YEAR(Data!B4)-YEAR(Data!B3))*12+MONTH(Data!B4)-MONTH(Data!B3))) -> 180 | I1: Int Rate | J1: =IF(Data!B8>6.5,6.5,Data!B8) -> 6.5 | K1: r | L1: =J1/1200 -> 0.005416666667 | M1: (1+r)^n-1 | N1: =((1+L1)^H1)-1 -> 1.64420082
B2: BALANCE | C2: EMI | D2: INTEREST | E2: principal repayment | F2: CL BALANCE | G2: NPV(By Formula) | H2: Days in Month | I2: =DAY(DATE(YEAR(Data!B4),MONTH(Data!B4)+1,1)-1) -> 31 | J2: EMI | K2: =IF($N$1=0,0,($D$1*$L$1)*((1+$L$1)^$H$1)/$N$1) -> 5226.644192
A3: 1 | B3: =D1 -> 600000 | C3: =K2 -> 5226.644192 | D3: =B3*$J$1*I3/(1200*I2) -> 3250 | E3: =C3-D3 -> 1976.644192 | F3: =B3-E3 -> 598023.3558 | G3: =D3/POWER(1+9/1200,A3) -> 3225.806452 | H3: Days for Int First Mth | I3: =VALUE(I2-DAY(Data!B4)+1) -> 31
A4: =A3+1 -> 2 | B4: =IF(F3>0,F3,0) -> 598023.3558 | C4: =IF(B4>0,C3,0) -> 5226.644192 | D4: =B4*$J$1/1200 -> 3239.293177 | E4: =C4-D4 -> 1987.351014 | F4: =B4-E4 -> 596036.0048 | G4: =D4/POWER(1+9/1200,A4) -> 3191.244995
A5: =A4+1 -> 3 | B5: =IF(F4>0,F4,0) -> 596036.0048 | C5: =IF(B5>0,C4,0) -> 5226.644192 | D5: =B5*$J$1/1200 -> 3228.528359 | E5: 1998.115832 | F5: 594037.889 | G5: 3156.962631
A6: 4 | B6: 594037.889 | C6: 5226.644192 | D6: 3217.705232 | E6: 2008.93896 | F6: 592028.95 | G6: 3122.957237
A7: 5 | B7: 592028.95 | C7: 5226.644192 | D7: 3206.823479 | E7: 2019.820713 | F7: 590009.1293 | G7: 3089.226706
A8: 6 | B8: 590009.1293 | C8: 5226.644192 | D8: 3195.882784 | E8: 2030.761408 | F8: 587978.3679 | G8: 3055.768947
A9: 7 | B9: 587978.3679 | C9: 5226.644192 | D9: 3184.882826 | E9: 2041.761366 | F9: 585936.6065 | G9: 3022.581886
A10: 8 | B10: 585936.6065 | C10: 5226.644192 | D10: 3173.823285 | E10: 2052.820906 | F10: 583883.7856 | G10: 2989.663461
A11: 9 | B11: 583883.7856 | C11: 5226.644192 | D11: 3162.703839 | E11: 2063.940353 | F11: 581819.8453 | G11: 2957.011628
A12: 10 | B12: 581819.8453 | C12: 5226.644192 | D12: 3151.524162 | E12: 2075.12003 | F12: 579744.7252 | G12: 2924.624359 | H12: Total NPV as per Manual Formula | I12: =SUM(G3:G182) -> 220187.0641
A13: 11 | B13: 579744.7252 | C13: 5226.644192 | D13: 3140.283928 | E13: 2086.360263 | F13: 577658.365 | G13: 2892.49964 | H13: NPV by Excel Formula | I13: =NPV(9/1200,D3:D182) -> 220187.0641
A14: 12 | B14: 577658.365 | C14: 5226.644192 | D14: 3128.98281 | E14: 2097.661382 | F14: 575560.7036 | G14: 2860.635471
A15: 13 | B15: 575560.7036 | C15: 5226.644192 | D15: 3117.620478 | E15: 2109.023714 | F15: 573451.6799 | G15: 2829.029869
A16: 14 | B16: 573451.6799 | C16: 5226.644192 | D16: 3106.196599 | E16: 2120.447593 | F16: 571331.2323 | G16: 2797.680865
A17: 15 | B17: 571331.2323 | C17: 5226.644192 | D17: 3094.710841 | E17: 2131.93335 | F17: 569199.2989 | G17: 2766.586505
A18: 16 | B18: 569199.2989 | C18: 5226.644192 | D18: 3083.162869 | E18: 2143.481323 | F18: 567055.8176 | G18: 2735.744848
A19: 17 | B19: 567055.8176 | C19: 5226.644192 | D19: 3071.552345 | E19: 2155.091846 | F19: 564900.7258 | G19: 2705.153971
A20: 18 | B20: 564900.7258 | C20: 5226.644192 | D20: 3059.878931 | E20: 2166.765261 | F20: 562733.9605 | G20: 2674.811961
A21: 19 | B21: 562733.9605 | C21: 5226.644192 | D21: 3048.142286 | E21: 2178.501906 | F21: 560555.4586 | G21: 2644.716924
A22: 20 | B22: 560555.4586 | C22: 5226.644192 | D22: 3036.342067 | E22: 2190.302124 | F22: 558365.1565 | G22: 2614.866977
A23: 21 | B23: 558365.1565 | C23: 5226.644192 | D23: 3024.477931 | E23: 2202.166261 | F23: 556162.9902 | G23: 2585.260251
A24: 22 | B24: 556162.9902 | C24: 5226.644192 | D24: 3012.54953 | E24: 2214.094662 | F24: 553948.8955 | G24: 2555.894893
A25: 23 | B25: 553948.8955 | C25: 5226.644192 | D25: 3000.556518 | E25: 2226.087674 | F25: 551722.8079 | G25: 2526.769062
A26: 24 | B26: 551722.8079 | C26: 5226.644192 | D26: 2988.498543 | E26: 2238.145649 | F26: 549484.6622 | G26: 2497.880933
A27: 25 | B27: 549484.6622 | C27: 5226.644192 | D27: 2976.375254 | E27: 2250.268938 | F27: 547234.3933 | G27: 2469.228692
A28: 26 | B28: 547234.3933 | C28: 5226.644192 | D28: 2964.186297 | E28: 2262.457895 | F28: 544971.9354 | G28: 2440.81054
A29: 27 | B29: 544971.9354 | C29: 5226.644192 | D29: 2951.931317 | E29: 2274.712875 | F29: 542697.2225 | G29: 2412.624693
A30: 28 | B30: 542697.2225 | C30: 5226.644192 | D30: 2939.609955 | E30: 2287.034237 | F30: 540410.1883 | G30: 2384.669377
A31: 29 | B31: 540410.1883 | C31: 5226.644192 | D31: 2927.221853 | E31: 2299.422339 | F31: 538110.7659 | G31: 2356.942834
A32: 30 | B32: 538110.7659 | C32: 5226.644192 | D32: 2914.766649 | E32: 2311.877543 | F32: 535798.8884 | G32: 2329.443318
A33: 31 | B33: 535798.8884 | C33: 5226.644192 | D33: 2902.243979 | E33: 2324.400213 | F33: 533474.4882 | G33: 2302.169096
A34: 32 | B34: 533474.4882 | C34: 5226.644192 | D34: 2889.653478 | E34: 2336.990714 | F34: 531137.4975 | G34: 2275.118448
A35: 33 | B35: 531137.4975 | C35: 5226.644192 | D35: 2876.994778 | E35: 2349.649414 | F35: 528787.8481 | G35: 2248.289668
A36: 34 | B36: 528787.8481 | C36: 5226.644192 | D36: 2864.26751 | E36: 2362.376682 | F36: 526425.4714 | G36: 2221.681062
A37: 35 | B37: 526425.4714 | C37: 5226.644192 | D37: 2851.471303 | E37: 2375.172889 | F37: 524050.2985 | G37: 2195.290949
A38: 36 | B38: 524050.2985 | C38: 5226.644192 | D38: 2838.605783 | E38: 2388.038408 | F38: 521662.2601 | G38: 2169.117659
A39: 37 | B39: 521662.2601 | C39: 5226.644192 | D39: 2825.670575 | E39: 2400.973616 | F39: 519261.2865 | G39: 2143.159537
A40: 38 | B40: 519261.2865 | C40: 5226.644192 | D40: 2812.665302 | E40: 2413.97889 | F40: 516847.3076 | G40: 2117.414938
A41: 39 | B41: 516847.3076 | C41: 5226.644192 | D41: 2799.589583 | E41: 2427.054609 | F41: 514420.253 | G41: 2091.882232
A42: 40 | B42: 514420.253 | C42: 5226.644192 | D42: 2786.443037 | E42: 2440.201155 | F42: 511980.0518 | G42: 2066.559799
A43: 41 | B43: 511980.0518 | C43: 5226.644192 | D43: 2773.225281 | E43: 2453.418911 | F43: 509526.6329 | G43: 2041.446031
A44: 42 | B44: 509526.6329 | C44: 5226.644192 | D44: 2759.935928 | E44: 2466.708264 | F44: 507059.9246 | G44: 2016.539335
A45: 43 | B45: 507059.9246 | C45: 5226.644192 | D45: 2746.574592 | E45: 2480.0696 | F45: 504579.855 | G45: 1991.838127
A46: 44 | B46: 504579.855 | C46: 5226.644192 | D46: 2733.140881 | E46: 2493.50331 | F46: 502086.3517 | G46: 1967.340835
A47: 45 | B47: 502086.3517 | C47: 5226.644192 | D47: 2719.634405 | E47: 2507.009787 | F47: 499579.3419 | G47: 1943.045901
A48: 46 | B48: 499579.3419 | C48: 5226.644192 | D48: 2706.054769 | E48: 2520.589423 | F48: 497058.7525 | G48: 1918.951776
A49: 47 | B49: 497058.7525 | C49: 5226.644192 | D49: 2692.401576 | E49: 2534.242616 | F49: 494524.5099 | G49: 1895.056924
A50: 48 | B50: 494524.5099 | C50: 5226.644192 | D50: 2678.674429 | E50: 2547.969763 | F50: 491976.5401 | G50: 1871.359821
A51: 49 | B51: 491976.5401 | C51: 5226.644192 | D51: 2664.872926 | E51: 2561.771266 | F51: 489414.7689 | G51: 1847.858954
A52: 50 | B52: 489414.7689 | C52: 5226.644192 | D52: 2650.996665 | E52: 2575.647527 | F52: 486839.1213 | G52: 1824.552821
A53: 51 | B53: 486839.1213 | C53: 5226.644192 | D53: 2637.045241 | E53: 2589.598951 | F53: 484249.5224 | G53: 1801.439931
A54: 52 | B54: 484249.5224 | C54: 5226.644192 | D54: 2623.018246 | E54: 2603.625946 | F54: 481645.8964 | G54: 1778.518804
A55: 53 | B55: 481645.8964 | C55: 5226.644192 | D55: 2608.915272 | E55: 2617.728919 | F55: 479028.1675 | G55: 1755.787974
A56: 54 | B56: 479028.1675 | C56: 5226.644192 | D56: 2594.735907 | E56: 2631.908284 | F56: 476396.2592 | G56: 1733.245981
A57: 55 | B57: 476396.2592 | C57: 5226.644192 | D57: 2580.479738 | E57: 2646.164454 | F57: 473750.0948 | G57: 1710.891381
A58: 56 | B58: 473750.0948 | C58: 5226.644192 | D58: 2566.146347 | E58: 2660.497845 | F58: 471089.5969 | G58: 1688.722738
A59: 57 | B59: 471089.5969 | C59: 5226.644192 | D59: 2551.735317 | E59: 2674.908875 | F59: 468414.6881 | G59: 1666.738626
A60: 58 | B60: 468414.6881 | C60: 5226.644192 | D60: 2537.246227 | E60: 2689.397965 | F60: 465725.2901 | G60: 1644.937632
A61: 59 | B61: 465725.2901 | C61: 5226.644192 | D61: 2522.678655 | E61: 2703.965537 | F61: 463021.3246 | G61: 1623.318352
A62: 60 | B62: 463021.3246 | C62: 5226.644192 | D62: 2508.032175 | E62: 2718.612017 | F62: 460302.7125 | G62: 1601.879394
A63: 61 | B63: 460302.7125 | C63: 5226.644192 | D63: 2493.30636 | E63: 2733.337832 | F63: 457569.3747 | G63: 1580.619375
A64: 62 | B64: 457569.3747 | C64: 5226.644192 | D64: 2478.50078 | E64: 2748.143412 | F64: 454821.2313 | G64: 1559.536923
A65: 63 | B65: 454821.2313 | C65: 5226.644192 | D65: 2463.615003 | E65: 2763.029189 | F65: 452058.2021 | G65: 1538.630677
A66: 64 | B66: 452058.2021 | C66: 5226.644192 | D66: 2448.648595 | E66: 2777.995597 | F66: 449280.2065 | G66: 1517.899284
A67: 65 | B67: 449280.2065 | C67: 5226.644192 | D67: 2433.601119 | E67: 2793.043073 | F67: 446487.1634 | G67: 1497.341403
A68: 66 | B68: 446487.1634 | C68: 5226.644192 | D68: 2418.472135 | E68: =C68-D68 -> 2808.172057 | F68: =B68-E68 -> 443678.9914 | G68: =D68/POWER(1+9/1200,A68) -> 1476.955704
A69: =A68+1 -> 67 | B69: =IF(F68>0,F68,0) -> 443678.9914 | C69: =IF(B69>0,C68,0) -> 5226.644192 | D69: =B69*$J$1/1200 -> 2403.261203 | E69: 2823.382988 | F69: 440855.6084 | G69: 1456.740864
A70: 68 | B70: 440855.6084 | C70: 5226.644192 | D70: 2387.967879 | E70: 2838.676313 | F70: 438016.9321 | G70: 1436.695573
A71: 69 | B71: 438016.9321 | C71: 5226.644192 | D71: 2372.591715 | E71: 2854.052476 | F71: 435162.8796 | G71: 1416.818528
A72: 70 | B72: 435162.8796 | C72: 5226.644192 | D72: 2357.132265 | E72: 2869.511927 | F72: 432293.3677 | G72: 1397.108438
A73: 71 | B73: 432293.3677 | C73: 5226.644192 | D73: 2341.589075 | E73: 2885.055117 | F73: 429408.3126 | G73: 1377.564021
A74: 72 | B74: 429408.3126 | C74: 5226.644192 | D74: 2325.961693 | E74: 2900.682499 | F74: 426507.6301 | G74: 1358.184004
A75: 73 | B75: 426507.6301 | C75: 5226.644192 | D75: 2310.249663 | E75: 2916.394529 | F75: 423591.2355 | G75: 1338.967125
A76: 74 | B76: 423591.2355 | C76: 5226.644192 | D76: 2294.452526 | E76: 2932.191666 | F76: 420659.0439 | G76: 1319.91213
A77: 75 | B77: 420659.0439 | C77: 5226.644192 | D77: 2278.569821 | E77: 2948.074371 | F77: 417710.9695 | G77: 1301.017775
A78: 76 | B78: 417710.9695 | C78: 5226.644192 | D78: 2262.601085 | E78: 2964.043107 | F78: 414746.9264 | G78: 1282.282825
A79: 77 | B79: 414746.9264 | C79: 5226.644192 | D79: 2246.545851 | E79: 2980.098341 | F79: 411766.828 | G79: 1263.706054
A80: 78 | B80: 411766.828 | C80: 5226.644192 | D80: 2230.403652 | E80: 2996.24054 | F80: 408770.5875 | G80: 1245.286248
A81: 79 | B81: 408770.5875 | C81: 5226.644192 | D81: 2214.174016 | E81: 3012.470176 | F81: 405758.1173 | G81: 1227.022198
A82: 80 | B82: 405758.1173 | C82: 5226.644192 | D82: 2197.856469 | E82: 3028.787723 | F82: 402729.3296 | G82: 1208.912707
A83: 81 | B83: 402729.3296 | C83: 5226.644192 | D83: 2181.450535 | E83: 3045.193656 | F83: 399684.136 | G83: 1190.956585
A84: 82 | B84: 399684.136 | C84: 5226.644192 | D84: 2164.955736 | E84: 3061.688455 | F84: 396622.4475 | G84: 1173.152652
A85: 83 | B85: 396622.4475 | C85: 5226.644192 | D85: 2148.371591 | E85: 3078.272601 | F85: 393544.1749 | G85: 1155.499738
A86: 84 | B86: 393544.1749 | C86: 5226.644192 | D86: 2131.697614 | E86: 3094.946578 | F86: 390449.2283 | G86: 1137.996679
A87: 85 | B87: 390449.2283 | C87: 5226.644192 | D87: 2114.93332 | E87: 3111.710872 | F87: 387337.5174 | G87: 1120.642323
A88: 86 | B88: 387337.5174 | C88: 5226.644192 | D88: 2098.078219 | E88: 3128.565972 | F88: 384208.9515 | G88: 1103.435524
A89: 87 | B89: 384208.9515 | C89: 5226.644192 | D89: 2081.13182 | E89: 3145.512371 | F89: 381063.4391 | G89: 1086.375145
A90: 88 | B90: 381063.4391 | C90: 5226.644192 | D90: 2064.093628 | E90: 3162.550563 | F90: 377900.8885 | G90: 1069.460059
A91: 89 | B91: 377900.8885 | C91: 5226.644192 | D91: 2046.963146 | E91: 3179.681046 | F91: 374721.2075 | G91: 1052.689147
A92: 90 | B92: 374721.2075 | C92: 5226.644192 | D92: 2029.739874 | E92: 3196.904318 | F92: 371524.3032 | G92: 1036.061296
A93: 91 | B93: 371524.3032 | C93: 5226.644192 | D93: 2012.423309 | E93: 3214.220883 | F93: 368310.0823 | G93: 1019.575406
A94: 92 | B94: 368310.0823 | C94: 5226.644192 | D94: 1995.012946 | E94: 3231.631246 | F94: 365078.451 | G94: 1003.230381
A95: 93 | B95: 365078.451 | C95: 5226.644192 | D95: 1977.508276 | E95: 3249.135915 | F95: 361829.3151 | G95: 987.0251348
A96: 94 | B96: 361829.3151 | C96: 5226.644192 | D96: 1959.90879 | E96: 3266.735401 | F96: 358562.5797 | G96: 970.9585901
A97: 95 | B97: 358562.5797 | C97: 5226.644192 | D97: 1942.213974 | E97: 3284.430218 | F97: 355278.1495 | G97: 955.0296768
A98: 96 | B98: 355278.1495 | C98: 5226.644192 | D98: 1924.42331 | E98: 3302.220882 | F98: 351975.9286 | G98: 939.237333
A99: 97 | B99: 351975.9286 | C99: 5226.644192 | D99: 1906.53628 | E99: 3320.107912 | F99: 348655.8207 | G99: 923.5805048
A100: 98 | B100: 348655.8207 | C100: 5226.644192 | D100: 1888.552362 | E100: 3338.09183 | F100: 345317.7289 | G100: 908.0581464
A101: 99 | B101: 345317.7289 | C101: 5226.644192 | D101: 1870.471031 | E101: 3356.17316 | F101: 341961.5557 | G101: 892.6692197
A102: 100 | B102: 341961.5557 | C102: 5226.644192 | D102: 1852.29176 | E102: 3374.352432 | F102: 338587.2033 | G102: 877.4126944
A103: 101 | B103: 338587.2033 | C103: 5226.644192 | D103: 1834.014018 | E103: 3392.630174 | F103: 335194.5731 | G103: 862.287548
A104: 102 | B104: 335194.5731 | C104: 5226.644192 | D104: 1815.637271 | E104: 3411.006921 | F104: 331783.5662 | G104: 847.2927657
A105: 103 | B105: 331783.5662 | C105: 5226.644192 | D105: 1797.160984 | E105: 3429.483208 | F105: 328354.083 | G105: 832.4273402
A106: 104 | B106: 328354.083 | C106: 5226.644192 | D106: 1778.584616 | E106: 3448.059576 | F106: 324906.0234 | G106: 817.690272
A107: 105 | B107: 324906.0234 | C107: 5226.644192 | D107: 1759.907627 | E107: 3466.736565 | F107: 321439.2869 | G107: 803.0805689
A108: 106 | B108: 321439.2869 | C108: 5226.644192 | D108: 1741.12947 | E108: 3485.514721 | F108: 317953.7721 | G108: 788.5972464
A109: 107 | B109: 317953.7721 | C109: 5226.644192 | D109: 1722.249599 | E109: 3504.394593 | F109: 314449.3775 | G109: 774.2393271
A110: 108 | B110: 314449.3775 | C110: 5226.644192 | D110: 1703.267462 | E110: 3523.37673 | F110: 310926.0008 | G110: 760.0058412
A111: 109 | B111: 310926.0008 | C111: 5226.644192 | D111: 1684.182504 | E111: 3542.461687 | F111: 307383.5391 | G111: 745.895826
A112: 110 | B112: 307383.5391 | C112: 5226.644192 | D112: 1664.99417 | E112: 3561.650022 | F112: 303821.8891 | G112: 731.9083263
A113: 111 | B113: 303821.8891 | C113: 5226.644192 | D113: 1645.701899 | E113: 3580.942292 | F113: 300240.9468 | G113: 718.0423938
A114: 112 | B114: 300240.9468 | C114: 5226.644192 | D114: 1626.305129 | E114: 3600.339063 | F114: 296640.6077 | G114: 704.2970875
A115: 113 | B115: 296640.6077 | C115: 5226.644192 | D115: 1606.803292 | E115: 3619.8409 | F115: 293020.7668 | G115: 690.6714736
A116: 114 | B116: 293020.7668 | C116: 5226.644192 | D116: 1587.19582 | E116: 3639.448371 | F116: 289381.3185 | G116: 677.1646249
A117: 115 | B117: 289381.3185 | C117: 5226.644192 | D117: 1567.482142 | E117: 3659.16205 | F117: 285722.1564 | G117: 663.7756216
A118: 116 | B118: 285722.1564 | C118: 5226.644192 | D118: 1547.661681 | E118: 3678.982511 | F118: 282043.1739 | G118: 650.5035507
A119: 117 | B119: 282043.1739 | C119: 5226.644192 | D119: 1527.733859 | E119: 3698.910333 | F119: 278344.2636 | G119: 637.347506
A120: 118 | B120: 278344.2636 | C120: 5226.644192 | D120: 1507.698094 | E120: 3718.946097 | F120: 274625.3175 | G120: 624.3065882
A121: 119 | B121: 274625.3175 | C121: 5226.644192 | D121: 1487.553803 | E121: 3739.090389 | F121: 270886.2271 | G121: 611.3799046
A122: 120 | B122: 270886.2271 | C122: 5226.644192 | D122: 1467.300397 | E122: 3759.343795 | F122: 267126.8833 | G122: 598.5665694
A123: 121 | B123: 267126.8833 | C123: 5226.644192 | D123: 1446.937285 | E123: 3779.706907 | F123: 263347.1764 | G123: 585.8657036
A124: 122 | B124: 263347.1764 | C124: 5226.644192 | D124: 1426.463872 | E124: 3800.18032 | F124: 259546.9961 | G124: 573.2764343
A125: 123 | B125: 259546.9961 | C125: 5226.644192 | D125: 1405.879562 | E125: 3820.76463 | F125: 255726.2314 | G125: 560.7978958
A126: 124 | B126: 255726.2314 | C126: 5226.644192 | D126: 1385.183754 | E126: 3841.460438 | F126: 251884.771 | G126: 548.4292284
A127: 125 | B127: 251884.771 | C127: 5226.644192 | D127: 1364.375843 | E127: 3862.268349 | F127: 248022.5027 | G127: 536.1695793
A128: 126 | B128: 248022.5027 | C128: 5226.644192 | D128: 1343.455223 | E128: 3883.188969 | F128: 244139.3137 | G128: 524.0181017
A129: 127 | B129: 244139.3137 | C129: 5226.644192 | D129: 1322.421282 | E129: 3904.222909 | F129: 240235.0908 | G129: 511.9739555
A130: 128 | B130: 240235.0908 | C130: 5226.644192 | D130: 1301.273408 | E130: 3925.370783 | F130: 236309.72 | G130: 500.0363069
A131: 129 | B131: 236309.72 | C131: 5226.644192 | D131: 1280.010983 | E131: 3946.633209 | F131: 232363.0868 | G131: 488.2043281
A132: 130 | B132: 232363.0868 | C132: 5226.644192 | D132: 1258.633387 | E132: =C132-D132 -> 3968.010805 | F132: =B132-E132 -> 228395.076 | G132: =D132/POWER(1+9/1200,A132) -> 476.4771979
A133: =A132+1 -> 131 | B133: =IF(F132>0,F132,0) -> 228395.076 | C133: =IF(B133>0,C132,0) -> 5226.644192 | D133: =B133*$J$1/1200 -> 1237.139995 | E133: 3989.504197 | F133: 224405.5718 | G133: 464.854101
A134: 132 | B134: 224405.5718 | C134: 5226.644192 | D134: 1215.53018 | E134: 4011.114011 | F134: 220394.4578 | G134: 453.3342284
A135: 133 | B135: 220394.4578 | C135: 5226.644192 | D135: 1193.803313 | E135: 4032.840879 | F135: 216361.6169 | G135: 441.9167771
A136: 134 | B136: 216361.6169 | C136: 5226.644192 | D136: 1171.958758 | E136: 4054.685434 | F136: 212306.9315 | G136: 430.6009503
A137: 135 | B137: 212306.9315 | C137: 5226.644192 | D137: 1149.995879 | E137: 4076.648313 | F137: 208230.2831 | G137: 419.385957
A138: 136 | B138: 208230.2831 | C138: 5226.644192 | D138: 1127.914034 | E138: 4098.730158 | F138: 204131.553 | G138: 408.2710123
A139: 137 | B139: 204131.553 | C139: 5226.644192 | D139: 1105.712579 | E139: 4120.931613 | F139: 200010.6214 | G139: 397.2553372
A140: 138 | B140: 200010.6214 | C140: 5226.644192 | D140: 1083.390866 | E140: 4143.253326 | F140: 195867.368 | G140: 386.3381585
A141: 139 | B141: 195867.368 | C141: 5226.644192 | D141: 1060.948244 | E141: 4165.695948 | F141: 191701.6721 | G141: 375.5187089
A142: 140 | B142: 191701.6721 | C142: 5226.644192 | D142: 1038.384057 | E142: 4188.260135 | F142: 187513.412 | G142: 364.7962269
A143: 141 | B143: 187513.412 | C143: 5226.644192 | D143: 1015.697648 | E143: 4210.946544 | F143: 183302.4654 | G143: 354.1699566
A144: 142 | B144: 183302.4654 | C144: 5226.644192 | D144: 992.8883544 | E144: 4233.755837 | F144: 179068.7096 | G144: 343.6391478
A145: 143 | B145: 179068.7096 | C145: 5226.644192 | D145: 969.9555102 | E145: 4256.688682 | F145: 174812.0209 | G145: 333.2030563
A146: 144 | B146: 174812.0209 | C146: 5226.644192 | D146: 946.8984465 | E146: 4279.745745 | F146: 170532.2752 | G146: 322.860943
A147: 145 | B147: 170532.2752 | C147: 5226.644192 | D147: 923.7164904 | E147: 4302.927701 | F147: 166229.3475 | G147: 312.6120749
A148: 146 | B148: 166229.3475 | C148: 5226.644192 | D148: 900.4089654 | E148: 4326.235226 | F148: 161903.1122 | G148: 302.4557239
A149: 147 | B149: 161903.1122 | C149: 5226.644192 | D149: 876.9751912 | E149: 4349.669001 | F149: 157553.4432 | G149: 292.3911681
A150: 148 | B150: 157553.4432 | C150: 5226.644192 | D150: 853.4144841 | E150: 4373.229708 | F150: 153180.2135 | G150: 282.4176904
A151: 149 | B151: 153180.2135 | C151: 5226.644192 | D151: 829.7261566 | E151: 4396.918035 | F151: 148783.2955 | G151: 272.5345796
A152: 150 | B152: 148783.2955 | C152: 5226.644192 | D152: 805.9095172 | E152: 4420.734675 | F152: 144362.5608 | G152: 262.7411295
A153: 151 | B153: 144362.5608 | C153: 5226.644192 | D153: 781.9638711 | E153: 4444.680321 | F153: 139917.8805 | G153: 253.0366394
A154: 152 | B154: 139917.8805 | C154: 5226.644192 | D154: 757.8885193 | E154: 4468.755672 | F154: 135449.1248 | G154: 243.420414
A155: 153 | B155: 135449.1248 | C155: 5226.644192 | D155: 733.6827594 | E155: 4492.961432 | F155: 130956.1634 | G155: 233.891763
A156: 154 | B156: 130956.1634 | C156: 5226.644192 | D156: 709.345885 | E156: 4517.298307 | F156: 126438.8651 | G156: 224.4500014
A157: 155 | B157: 126438.8651 | C157: 5226.644192 | D157: 684.8771858 | E157: 4541.767006 | F157: 121897.0981 | G157: 215.0944495
A158: 156 | B158: 121897.0981 | C158: 5226.644192 | D158: 660.2759479 | E158: 4566.368244 | F158: 117330.7298 | G158: 205.8244324
A159: 157 | B159: 117330.7298 | C159: 5226.644192 | D159: 635.5414532 | E159: 4591.102739 | F159: 112739.6271 | G159: 196.6392808
A160: 158 | B160: 112739.6271 | C160: 5226.644192 | D160: 610.6729801 | E160: 4615.971212 | F160: 108123.6559 | G160: 187.5383299
A161: 159 | B161: 108123.6559 | C161: 5226.644192 | D161: 585.6698027 | E161: 4640.974389 | F161: 103482.6815 | G161: 178.5209203
A162: 160 | B162: 103482.6815 | C162: 5226.644192 | D162: 560.5311914 | E162: 4666.113 | F162: 98816.56849 | G162: 169.5863974
A163: 161 | B163: 98816.56849 | C163: 5226.644192 | D163: 535.2564126 | E163: 4691.387779 | F163: 94125.18071 | G163: 160.7341116
A164: 162 | B164: 94125.18071 | C164: 5226.644192 | D164: 509.8447288 | E164: 4716.799463 | F164: 89408.38125 | G164: 151.9634182
A165: 163 | B165: 89408.38125 | C165: 5226.644192 | D165: 484.2953984 | E165: 4742.348793 | F165: 84666.03245 | G165: 143.2736774
A166: 164 | B166: 84666.03245 | C166: 5226.644192 | D166: 458.6076758 | E166: 4768.036516 | F166: 79897.99594 | G166: 134.6642541
A167: 165 | B167: 79897.99594 | C167: 5226.644192 | D167: 432.7808113 | E167: 4793.86338 | F167: 75104.13256 | G167: 126.1345182
A168: 166 | B168: 75104.13256 | C168: 5226.644192 | D168: 406.8140513 | E168: 4819.83014 | F168: 70284.30242 | G168: 117.6838441
A169: 167 | B169: 70284.30242 | C169: 5226.644192 | D169: 380.7066381 | E169: 4845.937554 | F169: 65438.36486 | G169: 109.3116112
A170: 168 | B170: 65438.36486 | C170: 5226.644192 | D170: 354.4578097 | E170: 4872.186382 | F170: 60566.17848 | G170: 101.0172033
A171: 169 | B171: 60566.17848 | C171: 5226.644192 | D171: 328.0668001 | E171: 4898.577392 | F171: 55667.60109 | G171: 92.80000918
A172: 170 | B172: 55667.60109 | C172: 5226.644192 | D172: 301.5328392 | E172: 4925.111353 | F172: 50742.48974 | G172: 84.65942195
A173: 171 | B173: 50742.48974 | C173: 5226.644192 | D173: 274.8551527 | E173: 4951.789039 | F173: 45790.7007 | G173: 76.59483943
A174: 172 | B174: 45790.7007 | C174: 5226.644192 | D174: 248.0329621 | E174: 4978.61123 | F174: 40812.08947 | G174: 68.60566399
A175: 173 | B175: 40812.08947 | C175: 5226.644192 | D175: 221.0654846 | E175: 5005.578707 | F175: 35806.51076 | G175: 60.69130249
A176: 174 | B176: 35806.51076 | C176: 5226.644192 | D176: 193.9519333 | E176: 5032.692259 | F176: 30773.8185 | G176: 52.85116628
A177: 175 | B177: 30773.8185 | C177: 5226.644192 | D177: 166.6915169 | E177: 5059.952675 | F177: 25713.86583 | G177: 45.08467116
A178: 176 | B178: 25713.86583 | C178: 5226.644192 | D178: 139.2834399 | E178: 5087.360752 | F178: 20626.50507 | G178: 37.39123734
A179: 177 | B179: 20626.50507 | C179: 5226.644192 | D179: 111.7269025 | E179: 5114.917289 | F179: 15511.58779 | G179: 29.77028941
A180: 178 | B180: 15511.58779 | C180: 5226.644192 | D180: 84.0211005 | E180: 5142.623091 | F180: 10368.96469 | G180: 22.22125632
A181: 179 | B181: 10368.96469 | C181: 5226.644192 | D181: 56.16522542 | E181: 5170.478966 | F181: 5198.485727 | G181: 14.74357131
A182: 180 | B182: 5198.485727 | C182: 5226.644192 | D182: 28.15846436 | E182: 5198.485727 | F182: -1.071293809e-08 | G182: 7.336671943
C183: =SUM(C3:C182) -> 940795.9545 | D183: =SUM(D3:D182) -> 340795.9545 | E183: =SUM(E3:E182) -> 600000

Sheet Sheet1 (hidden)
A1: Please enable macros
